bitfinex-derivatives/quotes_BTCF0:USTF0_20251217
["timestamp","ask_amount","ask_price","bid_price","bid_amount"]
[1765950534026,0.69473,86763.0,86762.0,0.67089]
[1765950535140,0.69673,86763.0,86762.0,0.67089]
[1765950535837,0.69673,86763.0,86755.0,0.00017293]
[1765950535838,0.69473,86756.0,86755.0,0.67106293]
[1765950536551,0.69473,86756.0,86755.0,0.00017293]
[1765950536840,0.69473,86742.0,86738.0,0.3608]
[1765950537639,0.69473,86742.0,86725.0,0.25844]
[1765950537640,0.69473,86742.0,86729.0,0.3608]
[1765950537833,0.69473,86742.0,86733.0,0.00017293]
[1765950538638,0.69473,86742.0,86741.0,0.05538518]
[1765950538938,0.69473,86734.0,86733.0,0.00017293]
[1765950539139,0.69473,86734.0,86733.0,0.67106293]
[1765950539331,0.69473,86734.0,86733.0,0.34518293]
[1765950539642,0.71943124,86734.0,86733.0,0.34518293]
[1765950539836,0.71943124,86734.0,86733.0,0.00017293]
[1765950541241,0.69473,86724.0,86713.0,0.0115347]
[1765950541439,0.71943124,86724.0,86723.0,0.34513534]
[1765950541637,0.06192667,86743.0,86738.0,0.0115313]
[1765950541843,0.69473,86743.0,86742.0,0.67089]
[1765950542044,1.44389341,86743.0,86742.0,0.67089]
[1765950542433,0.71945341,86743.0,86742.0,0.67089]
[1765950542637,1.44389341,86743.0,86742.0,0.67089]
[1765950544544,0.02472341,86743.0,86742.0,1.03169]
[1765950544942,0.02472341,86743.0,86742.0,1.03269]
[1765950545348,0.74221341,86743.0,86742.0,1.03269]
[1765950545538,0.02472341,86743.0,86742.0,1.03269]
[1765950545744,0.00017293,86751.0,86750.0,0.9237099]
[1765950545945,0.00017293,86751.0,86750.0,1.2845099]
[1765950546441,0.02500254,86751.0,86750.0,1.2845099]
[1765950547341,0.02500254,86751.0,86750.0,1.2865099]
[1765950547538,0.02500254,86751.0,86750.0,1.2875099]
[1765950548135,0.02500254,86751.0,86750.0,1.2865099]
[1765950548340,0.02500254,86751.0,86750.0,1.2875099]
[1765950548541,1.03885,86761.0,86760.0,0.70768]
[1765950548742,1.03885,86761.0,86760.0,0.91218]
[1765950549851,0.32136,86761.0,86760.0,0.91218]
[1765950550144,1.03885,86761.0,86758.0,0.3608]
[1765950550346,0.71749,86759.0,86758.0,0.3608]
[1765950550734,0.19737,86760.0,86752.0,0.00017293]
[1765950550735,0.71749,86753.0,86752.0,0.00017293]
[1765950553351,0.71849,86753.0,86752.0,0.00017293]
[1765950553744,0.71749,86744.0,86743.0,0.3608]
[1765950553941,0.71749,86736.0,86735.0,0.3608]
[1765950554142,0.71749,86736.0,86735.0,1.06848]
[1765950554544,0.71749,86736.0,86735.0,0.3608]
[1765950555049,0.71749,86736.0,86735.0,1.06848]
[1765950556139,0.71749,86736.0,86735.0,1.06948]
[1765950556344,0.71749,86736.0,86735.0,0.001]
[1765950556950,0.00230581,86738.0,86737.0,0.70768]
[1765950557140,0.71979581,86738.0,86737.0,0.70768]
[1765950558050,0.00230581,86738.0,86737.0,0.70768]
[1765950558642,0.00230581,86738.0,86737.0,1.06848]
[1765950558643,0.00190112,86738.0,86737.0,1.06848]
[1765950558843,0.00017293,86744.0,86743.0,0.7192108]
[1765950559149,0.71472,86760.0,86759.0,0.7192087]
[1765950559343,0.71472,86760.0,86759.0,1.0800087]
[1765950560252,0.71572,86760.0,86759.0,1.0800087]
[1765950560445,1.43321,86760.0,86759.0,1.06848]
[1765950560648,0.71572,86760.0,86759.0,1.0800087]
[1765950562748,1.07407,86760.0,86759.0,1.06848]
[1765950562953,1.27144,86760.0,86759.0,0.3608]
[1765950563149,0.71749,86752.0,86751.0,1.08018263]
[1765950563959,0.71749,86752.0,86751.0,1.06865293]
[1765950564163,0.71749,86752.0,86751.0,0.00017293]
[1765950564366,0.71749,86752.0,86751.0,0.00117293]
[1765950565255,0.71749,86752.0,86751.0,0.36043293]
[1765950565651,0.71749,86752.0,86751.0,0.70885293]
[1765950565959,0.71749,86752.0,86751.0,0.70785293]
[1765950565960,0.71849,86752.0,86751.0,0.70785293]
[1765950566358,0.71849,86752.0,86751.0,0.00017293]
[1765950566553,0.71749,86752.0,86751.0,0.00117293]
[1765950567954,0.71749,86760.0,86759.0,0.70768]
[1765950568160,1.41717,86760.0,86759.0,0.70768]
[1765950568664,1.61454,86760.0,86759.0,0.34842]
[1765950569158,1.61454,86760.0,86759.0,1.0561]
[1765950569159,1.05803,86760.0,86759.0,1.0561]
[1765950569365,0.70068,86760.0,86759.0,1.0561]
[1765950569552,1.05903,86760.0,86759.0,1.0561]
[1765950569756,1.05903,86760.0,86759.0,0.7192087]
[1765950570065,1.08375,86760.0,86759.0,0.7192087]
[1765950572469,0.35935,86760.0,86759.0,0.7192087]
[1765950572659,0.001,86760.0,86759.0,0.7192087]
[1765950573461,0.71749,86756.0,86755.0,0.3707891]
[1765950573760,0.71749,86756.0,86755.0,0.7192091]
[1765950573962,0.71749,86756.0,86755.0,0.35926]
[1765950574470,0.71749,86756.0,86755.0,0.70768]
[1765950575173,0.71749,86756.0,86755.0,0.70868]
[1765950576066,0.71749,86756.0,86755.0,0.001]
[1765950576468,1.07829,86756.0,86755.0,0.001]
[1765950576663,0.6878,86752.0,86751.0,0.00017293]
[1765950576869,0.6841,86744.0,86743.0,0.3608]
[1765950577573,0.6841,86734.0,86733.0,0.88721]
[1765950577866,0.6841,86734.0,86733.0,0.68271]
[1765950578856,0.6841,86734.0,86733.0,0.68471]
[1765950579474,0.6841,86734.0,86733.0,0.003]
[1765950579670,0.6841,86734.0,86733.0,0.68571]
[1765950580073,0.6841,86734.0,86733.0,0.89628]
[1765950580266,1.4083,86740.0,86739.0,0.68271]
[1765950581871,1.4083,86740.0,86739.0,0.68371]
[1765950583465,1.4083,86740.0,86739.0,0.001]
[1765950584567,1.4083,86740.0,86739.0,0.68371]
[1765950584769,1.4083,86740.0,86739.0,0.001]
[1765950585476,0.6841,86726.0,86725.0,0.34917293]
[1765950585878,0.6841,86726.0,86725.0,0.00017293]
[1765950586081,0.81467,86724.0,86715.0,0.3608]
[1765950586281,0.81467,86724.0,86718.0,0.3608]
[1765950586575,0.81467,86724.0,86719.0,0.011534]
[1765950586976,0.81467,86724.0,86718.0,0.3608]
[1765950590582,0.6841,86716.0,86715.0,0.00017293]
[1765950590882,1.40826,86716.0,86708.0,0.3608]
[1765950591081,0.18735,86715.0,86708.0,0.3608]
[1765950591280,0.6841,86709.0,86708.0,0.3608]
[1765950591479,0.6841,86701.0,86700.0,0.83323161]
[1765950591874,0.6841,86701.0,86700.0,0.68271]
[1765950592274,0.72408,86701.0,86700.0,0.68271]
[1765950592585,1.0763,86701.0,86700.0,0.68271]
[1765950593185,1.0763,86701.0,86700.0,0.68571]
[1765950593385,1.0763,86701.0,86700.0,0.68871]
[1765950596487,0.72408,86701.0,86700.0,0.68871]
[1765950596685,1.0763,86701.0,86700.0,0.68871]
[1765950601590,1.0763,86701.0,86700.0,0.006]
[1765950601883,1.0763,86701.0,86700.0,0.355]
[1765950602090,1.0763,86701.0,86700.0,0.68871]
[1765950602283,1.0763,86701.0,86700.0,0.7002465]
[1765950602683,0.6841,86701.0,86700.0,0.7002465]
[1765950604277,0.00012534,86709.0,86708.0,0.7048554]
[1765950604477,0.00012534,86709.0,86708.0,1.0656554]
[1765950604677,0.00012534,86709.0,86708.0,1.05412]
[1765950604678,0.67791534,86709.0,86708.0,1.05412]
[1765950605085,0.88053534,86709.0,86708.0,1.05412]
[1765950605284,0.67779,86703.0,86702.0,0.35452]
[1765950605479,0.67779,86703.0,86702.0,0.69332]
[1765950605783,0.34705534,86709.0,86708.0,0.69532]
[1765950606091,0.87628534,86709.0,86708.0,0.002]
[1765950606391,0.87628534,86709.0,86708.0,0.004]
[1765950607392,0.87628534,86709.0,86708.0,0.002]
[1765950608182,0.87628534,86709.0,86708.0,0.004]
[1765950609191,0.87628534,86709.0,86699.0,0.15052161]
[1765950609192,0.67779,86700.0,86699.0,0.84384161]
[1765950609393,0.67779,86700.0,86699.0,0.69332]
[1765950610383,0.67779,86700.0,86699.0,0.69632]
[1765950610690,0.67779,86700.0,86699.0,0.69832]
[1765950612594,0.67791534,86709.0,86708.0,0.69332]
[1765950613882,0.67791534,86709.0,86708.0,0.69432]
[1765950614692,0.67791534,86709.0,86708.0,0.69532]
[1765950614893,0.67791534,86709.0,86708.0,0.35652]
[1765950615595,0.67791534,86709.0,86708.0,0.69532]
[1765950616897,1.40151534,86709.0,86708.0,0.69532]
[1765950621994,1.40151534,86709.0,86708.0,0.002]
[1765950621995,1.60413534,86709.0,86708.0,0.002]
[1765950623098,1.60413534,86709.0,86708.0,0.35652]
[1765950624300,1.60413534,86709.0,86708.0,0.002]
[1765950624899,1.60413534,86709.0,86708.0,0.35652]
[1765950627296,1.40151534,86709.0,86708.0,0.69532]
[1765950629398,0.72372534,86709.0,86708.0,1.05612]
[1765950629799,1.07065534,86709.0,86708.0,1.05612]
[1765950630008,0.72372534,86709.0,86708.0,1.05612]
[1765950630490,1.07065534,86709.0,86708.0,1.05612]
[1765950630693,0.67791534,86709.0,86708.0,1.05612]
[1765950632001,0.67791534,86709.0,86708.0,0.35652]
[1765950632406,0.67791534,86709.0,86708.0,0.69532]
[1765950634299,0.67791534,86709.0,86708.0,0.69005]
[1765950639804,0.67791534,86709.0,86708.0,0.002]
[1765950639999,0.67791534,86709.0,86708.0,0.66786]
[1765950642502,0.00012534,86709.0,86708.0,0.66786]
[1765950642711,0.67151,86722.0,86721.0,0.66586]
[1765950643109,0.67151,86716.0,86715.0,0.66586]
[1765950643308,0.67151,86716.0,86715.0,0.6773945]
[1765950643502,0.67151,86716.0,86715.0,0.66586]
[1765950644512,0.67251,86716.0,86715.0,0.66586]
[1765950645006,0.67251,86716.0,86715.0,0.6773945]
[1765950645215,0.001,86716.0,86715.0,0.6773945]
[1765950645603,0.67251,86716.0,86715.0,0.6773945]
[1765950646406,0.67151,86716.0,86715.0,0.6773945]
[1765950646610,0.67151,86716.0,86715.0,0.6783945]
[1765950648316,0.32533,86716.0,86715.0,0.6783945]
[1765950649315,1.03248293,86724.0,86723.0,0.6773934]
[1765950650006,0.67168293,86724.0,86723.0,0.6773934]
[1765950650611,0.67268293,86724.0,86723.0,0.6773934]
[1765950651316,0.67228293,86724.0,86723.0,0.66586]
[1765950651517,0.67151,86717.0,86716.0,0.6773943]
[1765950651815,0.67151,86717.0,86715.0,0.3608]
[1765950652016,0.67151,86716.0,86715.0,0.69901]
[1765950652207,0.67151,86716.0,86715.0,1.02666]
[1765950653513,0.67151,86716.0,86700.0,0.34322633]
[1765950653514,0.67151,86714.0,86700.0,0.34322633]
[1765950653708,0.67151,86714.0,86713.0,0.33838293]
[1765950654517,0.67151,86714.0,86713.0,0.00017293]
[1765950654820,1.03231,86714.0,86713.0,0.00017293]
[1765950655118,0.67151,86705.0,86704.0,0.69901]
[1765950656310,0.67151,86705.0,86704.0,0.70001]
[1765950656721,0.67151,86705.0,86704.0,0.70201]
[1765950657315,0.67151,86705.0,86704.0,0.3638]
[1765950657615,0.67151,86705.0,86704.0,0.34121]
[1765950657818,0.67151,86705.0,86704.0,0.66886]
[1765950658822,0.72284,86707.0,86706.0,0.87524]
[1765950659719,1.04817,86707.0,86706.0,0.87524]
[1765950661117,0.72284,86707.0,86706.0,0.87524]
[1765950661622,0.73343667,86722.0,86721.0,0.66586]
[1765950661821,1.42327539,86722.0,86721.0,0.66586]
[1765950664020,1.39439,86722.0,86721.0,0.66586]
[1765950664618,0.67176,86716.0,86715.0,1.04879]
[1765950665020,0.67176,86716.0,86706.0,1.03121633]
[1765950665021,0.67176,86707.0,86706.0,1.03121633]
[1765950665222,0.67176,86707.0,86706.0,0.89737]
[1765950665424,0.13384633,86720.0,86706.0,0.20938]
[1765950665726,0.67176,86712.0,86711.0,1.060325]
[1765950666514,0.67176,86712.0,86711.0,0.3608]
[1765950666921,0.67176,86712.0,86711.0,1.04879]
[1765950667116,0.33481,86712.0,86711.0,1.04879]
[1765950667311,0.7228,86713.0,86711.0,1.04879]
[1765950667312,0.7228,86713.0,86712.0,0.6995249]
[1765950667820,1.05761,86713.0,86712.0,0.6995249]
[1765950668525,1.05761,86713.0,86712.0,0.68799]
[1765950669027,1.05761,86713.0,86712.0,0.001]
[1765950669530,0.67176,86712.0,86711.0,0.3608]
[1765950671528,0.67176,86712.0,86711.0,0.3618]
[1765950671829,0.7228,86713.0,86700.0,0.82188988]
[1765950671830,0.67176,86701.0,86700.0,0.82188988]
[1765950672124,0.67176,86701.0,86700.0,0.68799]
[1765950673232,0.67176,86701.0,86700.0,0.68999]
[1765950674018,0.67176,86701.0,86700.0,0.35713]
[1765950674425,0.67176,86701.0,86700.0,0.35813]
[1765950674737,0.67176,86701.0,86700.0,0.69099]
[1765950675140,0.67176,86701.0,86700.0,0.003]
[1765950675441,0.67176,86699.0,86698.0,0.00230687]
[1765950675835,0.12633,86702.0,86696.0,0.35226327]
[1765950675836,0.67176,86697.0,86696.0,0.35226327]
[1765950676140,1.39456,86697.0,86696.0,0.34592666]
[1765950676531,0.67176,86686.0,86685.0,0.71593]
[1765950676730,1.39456,86686.0,86685.0,1.04879]
[1765950678136,1.39456,86686.0,86677.0,0.68816304]
[1765950678137,0.67176,86678.0,86677.0,0.68816304]
[1765950678339,1.3916,86678.0,86677.0,0.68816304]
[1765950678639,1.3876,86678.0,86677.0,0.00017304]
[1765950679131,1.3876,86678.0,86677.0,0.00417304]
[1765950680750,1.3876,86678.0,86677.0,0.00817304]
[1765950681646,0.67176,86669.0,86668.0,0.48902988]
[1765950681846,0.67176,86663.0,86662.0,0.68809636]
[1765950683851,0.66376,86663.0,86662.0,0.68809636]
[1765950684441,0.66376,86663.0,86662.0,0.69309636]
[1765950684643,0.66376,86663.0,86662.0,0.69809636]
[1765950684852,0.66376,86663.0,86662.0,0.70963796]
[1765950687856,1.38676,86663.0,86662.0,0.70963796]
[1765950688447,1.38676,86663.0,86662.0,0.69809636]
[1765950688649,1.38676,86663.0,86662.0,0.01010636]
[1765950689355,1.38676,86663.0,86662.0,0.00175006]
[1765950690056,0.67176,86659.0,86658.0,0.00230794]
[1765950690257,1.03265995,86659.0,86658.0,0.00230794]
[1765950691456,1.03365995,86659.0,86658.0,0.00230794]
[1765950691762,0.67176,86643.0,86642.0,1.04879]
[1765950691952,1.39484,86643.0,86642.0,1.04879]
[1765950692666,1.39494636,86643.0,86642.0,1.04879]
[1765950693452,1.39594636,86643.0,86642.0,1.04879]
[1765950693663,1.39594636,86643.0,86642.0,0.68799]
[1765950693866,1.39794636,86643.0,86642.0,0.68799]
[1765950694165,1.06299636,86643.0,86642.0,1.0603342]
[1765950694366,0.72822636,86643.0,86642.0,1.0603342]
[1765950695064,1.08497636,86643.0,86642.0,1.0603342]
[1765950695261,1.08497636,86643.0,86642.0,0.6995342]
[1765950696164,0.70454,86636.0,86635.0,0.66882]
[1765950696568,1.07682636,86643.0,86642.0,0.33968]
[1765950696764,0.71092,86635.0,86634.0,0.68921]
[1765950697069,1.43408,86635.0,86634.0,0.89734]
[1765950698263,1.43608,86635.0,86634.0,0.68921]
[1765950698466,0.71092,86629.0,86627.0,0.3608]
[1765950698662,0.71092,86628.0,86627.0,1.05001]
[1765950699974,0.71192,86628.0,86627.0,1.05001]
[1765950700366,0.71492,86628.0,86627.0,1.05001]
[1765950701575,1.43816,86628.0,86627.0,1.05001]
[1765950702576,1.43825421,86628.0,86627.0,0.3608]
[1765950703280,1.43825421,86628.0,86627.0,1.05001]
[1765950703281,1.43829421,86628.0,86627.0,1.05001]
[1765950704869,0.71501421,86628.0,86627.0,1.0615562]
[1765950705174,0.72741421,86628.0,86627.0,1.0615562]
[1765950705377,0.83376,86649.0,86648.0,0.68921]
[1765950705572,1.17574716,86649.0,86648.0,0.68921]
[1765950705774,0.35794,86649.0,86648.0,0.68921]
[1765950705980,1.08126,86649.0,86648.0,0.68921]
[1765950706579,1.09026,86649.0,86648.0,0.68921]
[1765950706775,1.09026,86649.0,86639.0,0.83185]
[1765950706776,0.71092,86640.0,86639.0,0.83185]
[1765950706984,1.43424,86640.0,86639.0,0.68921]
[1765950707176,1.08126,86640.0,86639.0,0.68921]
[1765950707381,0.72332,86640.0,86639.0,0.68921]
[1765950707582,0.85381988,86649.0,86648.0,0.68921]
[1765950707784,1.44328,86649.0,86648.0,0.89734]
[1765950708283,1.44228,86649.0,86648.0,0.89734]
[1765950709181,1.43728,86649.0,86648.0,0.89734]
[1765950709787,1.44128,86649.0,86648.0,0.89734]
[1765950710169,0.73036,86649.0,86648.0,0.9088834]
[1765950710372,1.0883,86649.0,86648.0,0.9088834]
[1765950710576,0.73032,86649.0,86648.0,0.9088834]
[1765950711179,0.72732,86649.0,86648.0,0.9088834]
[1765950711380,1.44124,86649.0,86648.0,0.9088834]
[1765950712195,1.43724,86649.0,86648.0,0.9088834]
[1765950712486,1.44124,86649.0,86648.0,0.9088834]
[1765950712889,1.44124,86649.0,86648.0,0.89734]
[1765950713291,1.43724,86649.0,86648.0,0.89734]
[1765950713493,1.44124,86649.0,86648.0,0.89734]
[1765950713791,0.71092,86643.0,86642.0,1.05001]
[1765950714993,0.71292,86643.0,86642.0,1.05001]
[1765950715782,0.71092,86634.0,86633.0,0.68921]
[1765950715989,1.43424,86634.0,86633.0,0.68921]
[1765950718590,1.43724,86634.0,86633.0,0.68921]
[1765950720100,1.43524,86634.0,86633.0,0.68921]
[1765950720293,1.43724,86634.0,86633.0,0.68921]
[1765950720803,1.43624,86634.0,86633.0,0.68921]
[1765950720991,1.43724,86634.0,86633.0,0.68921]
[1765950729502,0.003,86634.0,86633.0,0.68921]
[1765950730507,0.65835,86633.0,86632.0,0.3608]
[1765950730697,0.65835,86624.0,86623.0,0.68528]
[1765950732007,0.65935,86624.0,86623.0,0.68528]
[1765950733613,0.001,86624.0,86623.0,0.68528]
[1765950743115,0.001,86624.0,86623.0,0.74674939]
[1765950743606,0.00017314,86632.0,86631.0,0.6968257]
[1765950743814,0.00017314,86632.0,86631.0,1.0576257]
[1765950745113,0.00217314,86632.0,86631.0,1.09913924]
[1765950745416,0.00317314,86632.0,86631.0,1.09913924]
[1765950746222,0.00317314,86632.0,86631.0,1.0576257]
[1765950746719,0.00317314,86632.0,86631.0,1.09916217]
[1765950746920,0.00317314,86632.0,86631.0,1.0576257]
[1765950750518,0.00317314,86632.0,86631.0,1.09916724]
[1765950750519,0.66152314,86632.0,86631.0,1.09916724]
[1765950751019,0.66152314,86632.0,86631.0,1.0576257]
[1765950755533,0.32714314,86632.0,86631.0,1.0576257]
[1765950755747,0.64548314,86632.0,86631.0,1.0576257]
[1765950757030,0.64348314,86632.0,86631.0,0.6968257]
[1765950757235,0.64548314,86632.0,86631.0,0.6968257]
[1765950757634,0.64448314,86632.0,86631.0,0.6968257]
[1765950757820,0.64548314,86632.0,86631.0,0.6968257]
[1765950759633,0.64548314,86632.0,86631.0,0.68528]
[1765950762842,0.34858314,86632.0,86631.0,0.68528]
[1765950763237,0.67146314,86632.0,86631.0,0.68528]
[1765950768746,0.67146314,86632.0,86631.0,0.33335]
[1765950768948,0.67146314,86632.0,86631.0,0.67997]
[1765950770049,0.67046314,86632.0,86631.0,0.67997]
[1765950770249,0.66946314,86632.0,86631.0,0.67997]
[1765950770440,0.67146314,86632.0,86631.0,0.67997]
[1765950781152,0.00317314,86632.0,86631.0,0.72151154]
[1765950781356,0.74445,86650.0,86649.0,0.6808433]
[1765950781553,1.06733,86650.0,86649.0,0.6808433]
[1765950782550,1.07133,86650.0,86649.0,0.6818433]
[1765950783161,1.07033,86650.0,86649.0,0.6808433]
[1765950783354,1.07333,86650.0,86649.0,0.6808433]
[1765950783551,1.07033,86650.0,86649.0,0.6808433]
[1765950783860,0.006,86650.0,86649.0,0.6808433]
[1765950784056,0.003,86650.0,86649.0,0.6808433]
[1765950784260,0.005,86650.0,86649.0,0.6808433]
[1765950784860,0.003,86650.0,86649.0,0.6808433]
[1765950785067,0.004,86650.0,86649.0,0.6808433]
[1765950785475,0.001,86650.0,86649.0,0.6808433]
[1765950785668,0.003,86650.0,86649.0,0.6808433]
[1765950785963,0.32561,86650.0,86649.0,0.6808433]
[1765950786270,0.003,86650.0,86649.0,0.6808433]
[1765950786865,0.32561,86650.0,86649.0,0.6808433]
[1765950787472,0.65497,86689.0,86688.0,0.65045]
[1765950788177,1.37833,86696.0,86695.0,0.6619872]
[1765950788365,0.65497,86696.0,86695.0,0.6619872]
[1765950788565,0.65497,86696.0,86695.0,0.65045]
[1765950788765,0.65497,86696.0,86695.0,0.31786]
[1765950788965,0.00230687,86698.0,86694.0,0.3608]
[1765950788966,0.85275,86695.0,86694.0,0.3608]
[1765950789365,0.85275,86695.0,86694.0,0.67866]
[1765950790272,0.85475,86695.0,86694.0,0.67866]
[1765950790680,0.85675,86695.0,86694.0,0.3608]
[1765950792174,0.85275,86688.0,86687.0,0.65062302]
[1765950792476,0.65497,86688.0,86687.0,0.65062302]
[1765950792972,0.85275,86688.0,86687.0,0.65062302]
[1765950793172,0.85375,86688.0,86687.0,0.65062302]
[1765950793568,0.85475,86688.0,86687.0,0.65062302]
[1765950794176,0.65597,86688.0,86687.0,0.65062302]
[1765950794369,0.65697,86688.0,86687.0,0.65062302]
[1765950795873,0.65597,86688.0,86687.0,0.65062302]
[1765950796178,0.65697,86688.0,86687.0,0.65062302]
[1765950798178,0.65597,86688.0,86687.0,0.65062302]
[1765950798379,0.65797,86688.0,86687.0,0.65062302]
[1765950798783,0.65697,86688.0,86687.0,0.65062302]
[1765950798978,0.65897,86688.0,86687.0,0.65062302]
[1765950799370,0.65697,86688.0,86687.0,0.65062302]
[1765950799571,0.65897,86688.0,86687.0,0.65062302]
[1765950800679,0.85675,86688.0,86687.0,0.65062302]
[1765950802183,0.004,86688.0,86687.0,0.65062302]
[1765950802576,0.004,86688.0,86687.0,0.66216122]
[1765950802974,0.65727687,86698.0,86697.0,0.65045]
[1765950805085,0.65927687,86698.0,86697.0,0.65045]
[1765950805286,0.00630687,86698.0,86697.0,0.65045]
[1765950805687,0.32791687,86698.0,86697.0,0.65045]
[1765950805983,0.19778,86700.0,86696.0,0.6619869]
[1765950806187,0.65497,86697.0,86696.0,0.65045]
[1765950806376,0.85275,86694.0,86693.0,1.03946]
[1765950807475,0.65497,86694.0,86693.0,1.03946]
[1765950809188,0.65597,86694.0,86693.0,1.03946]
[1765950809877,0.65697,86694.0,86693.0,1.03946]
[1765950810085,0.65697,86694.0,86693.0,1.01125]
[1765950810989,0.65597,86694.0,86693.0,1.01125]
[1765950811183,0.65697,86694.0,86693.0,1.01125]
[1765950814174,0.65697,86694.0,86693.0,0.67866]
[1765950814779,0.65697,86694.0,86693.0,0.66782]
[1765950815484,0.88536,86688.0,86687.0,1.04393302]
[1765950817091,0.68853,86688.0,86687.0,1.04393302]
[1765950817281,1.40619,86693.0,86692.0,0.68004]
[1765950818179,1.40619,86693.0,86692.0,0.6915776]
[1765950818391,0.34283,86693.0,86692.0,0.6915776]
[1765950818890,0.001,86693.0,86692.0,0.6915776]
[1765950819792,0.72288,86701.0,86700.0,0.8867365]
[1765950819993,0.72288,86701.0,86700.0,1.2475365]
[1765950820384,1.06471,86701.0,86700.0,1.2475365]
[1765950820688,0.72288,86701.0,86700.0,1.2475365]
[1765950820891,1.40615,86701.0,86700.0,1.0523765]
[1765950821085,1.40715,86701.0,86700.0,1.0523765]
[1765950821285,0.34283,86701.0,86700.0,1.2629765]
[1765950821591,0.001,86701.0,86700.0,1.2629765]
[1765950821986,0.002,86701.0,86700.0,1.2629765]
[1765950822786,0.34383,86701.0,86700.0,1.2629765]
[1765950823185,0.68527,86701.0,86700.0,1.04084]
[1765950823381,0.68527,86701.0,86700.0,0.70912]
[1765950823698,0.68527,86701.0,86700.0,1.04084]
[1765950824494,0.002,86701.0,86700.0,1.25146]
[1765950825585,0.68527,86701.0,86700.0,1.25146]
[1765950826387,0.68527,86701.0,86700.0,0.70912]
[1765950826593,0.68527,86701.0,86700.0,0.3608]
[1765950826795,0.68527,86701.0,86700.0,1.04084]
[1765950830096,0.68527,86701.0,86700.0,0.3608]
[1765950831398,0.68327,86691.0,86690.0,0.8139934]
[1765950831588,0.68327,86691.0,86690.0,0.68004]
[1765950834397,0.68427,86691.0,86690.0,0.68004]
[1765950834598,0.68527,86691.0,86690.0,0.68004]
[1765950835192,0.002,86691.0,86690.0,0.68004]
[1765950835393,0.34383,86691.0,86690.0,0.68004]
[1765950835593,0.68527,86691.0,86690.0,0.68004]
[1765950836499,0.68427,86691.0,86690.0,0.68004]
[1765950836699,0.68327,86691.0,86690.0,0.68004]
[1765950836902,0.68427,86691.0,86690.0,0.68004]
[1765950837102,0.68527,86691.0,86690.0,0.68004]
[1765950838693,0.68527,86691.0,86689.0,0.3608]
[1765950838890,0.68327,86690.0,86689.0,0.70912]
[1765950839091,0.68327,86690.0,86689.0,1.04084]
[1765950839292,0.87885,86688.0,86687.0,0.00017302]
[1765950839598,0.87885,86676.0,86675.0,1.04084]
[1765950839998,0.68327,86676.0,86675.0,1.04084]
[1765950840203,0.87885,86688.0,86687.0,0.68004]
[1765950840393,1.60273,86688.0,86687.0,0.68004]
[1765950841498,0.68527,86688.0,86687.0,0.68004]
[1765950841702,0.002,86688.0,86687.0,0.68004]
[1765950842108,0.00017302,86696.0,86695.0,0.68004]
[1765950842299,0.00017302,86696.0,86695.0,1.04084]
[1765950842500,0.00017302,86696.0,86695.0,1.0523772]
[1765950842803,0.68344302,86696.0,86695.0,1.04084]
[1765950843508,0.68444302,86696.0,86695.0,1.04084]
[1765950844406,0.68544302,86696.0,86695.0,1.04084]
[1765950847097,0.68544302,86696.0,86695.0,0.70912]
[1765950847299,0.68544302,86696.0,86695.0,0.3608]
[1765950850610,0.00217302,86696.0,86688.0,1.03709]
[1765950850811,0.66659,86689.0,86688.0,1.03709]
[1765950852411,0.66659,86689.0,86688.0,0.67629]
[1765950852604,0.66659,86689.0,86688.0,1.03809]
[1765950853806,0.66659,86689.0,86688.0,1.03709]
[1765950854006,0.66759,86689.0,86688.0,1.03709]
[1765950854404,0.66859,86689.0,86688.0,1.03709]
[1765950854605,0.66859,86689.0,86688.0,0.67629]
[1765950855010,0.66759,86689.0,86688.0,0.67629]
[1765950855216,0.66959,86689.0,86688.0,0.67629]
[1765950855519,0.66859,86689.0,86688.0,0.67629]
[1765950855818,0.66759,86689.0,86688.0,0.67629]
[1765950856015,0.66959,86689.0,86688.0,0.67629]
[1765950856719,0.66959,86689.0,86688.0,0.33569]
[1765950856905,0.86388,86688.0,86687.0,1.03709]
[1765950857302,0.66659,86688.0,86687.0,1.03709]
[1765950858013,0.66859,86688.0,86687.0,1.03709]
[1765950858519,0.32698,86688.0,86687.0,1.03709]
[1765950858714,0.66659,86694.0,86692.0,0.0115375]
[1765950858912,0.32498,86694.0,86693.0,0.67629]
[1765950859418,0.66659,86694.0,86693.0,0.67629]
[1765950859620,1.38943,86694.0,86693.0,0.67629]
[1765950860018,1.39043,86694.0,86693.0,0.67629]
[1765950861222,1.39143,86694.0,86693.0,0.67629]
[1765950862014,1.39043,86694.0,86693.0,0.67629]
[1765950862216,0.66759,86694.0,86693.0,0.67629]
[1765950862418,0.32598,86694.0,86693.0,0.67629]
[1765950862624,0.001,86694.0,86693.0,0.67629]
[1765950862922,0.32598,86694.0,86693.0,0.67629]
[1765950863112,0.001,86694.0,86693.0,0.67629]
[1765950863314,0.66759,86694.0,86693.0,0.67629]
[1765950863514,0.66859,86694.0,86693.0,0.67629]
[1765950863813,0.66759,86694.0,86693.0,0.67629]
[1765950864612,0.66659,86694.0,86693.0,0.67629]
[1765950864809,0.66759,86694.0,86693.0,0.67629]
[1765950865615,0.66859,86694.0,86693.0,0.67629]
[1765950869724,0.66859,86694.0,86693.0,0.6878274]
[1765950870628,0.66759,86694.0,86693.0,0.6878274]
[1765950870823,0.66859,86694.0,86693.0,0.6878274]
[1765950871928,0.66759,86694.0,86693.0,0.6878274]
[1765950872118,0.001,86694.0,86693.0,0.6878274]
[1765950872518,0.00017302,86696.0,86695.0,0.8845]
[1765950872719,0.00017302,86696.0,86695.0,1.2453]
[1765950873826,0.32515302,86696.0,86695.0,1.2453]
[1765950874027,0.00017302,86696.0,86695.0,1.2453]
[1765950874215,0.65783302,86696.0,86695.0,1.2453]
[1765950874421,0.65783302,86696.0,86695.0,1.03709]